bitfinex-derivatives/quotes_BTCF0:USTF0_20250912
["timestamp","ask_amount","ask_price","bid_price","bid_amount"]
[1757707710035,1.24186478,116470.0,116460.0,0.81824965]
[1757707710536,1.38114116,116470.0,116460.0,0.91098276]
[1757707710737,1.38114116,116470.0,116460.0,0.63243]
[1757707711036,1.38114116,116470.0,116460.0,0.91098276]
[1757707713038,1.38114116,116470.0,116460.0,0.63243]
[1757707713334,1.38114116,116470.0,116460.0,0.91098276]
[1757707713733,1.38114116,116470.0,116460.0,0.63243]
[1757707713939,1.38945116,116470.0,116460.0,0.77170638]
[1757707714432,1.38114116,116470.0,116460.0,0.91098276]
[1757707719536,1.24134478,116470.0,116460.0,0.91098276]
[1757707720138,0.42390478,116470.0,116460.0,1.05025914]
[1757707720328,1.24122478,116470.0,116460.0,1.05025914]
[1757707723037,0.42390478,116470.0,116460.0,1.05025914]
[1757707723243,0.88030478,116470.0,116460.0,1.05025914]
[1757707725037,0.88030478,116470.0,116460.0,0.77170638]
[1757707725243,0.88030478,116470.0,116460.0,1.05025914]
[1757707726043,0.88030478,116470.0,116460.0,0.63243]
[1757707726341,0.88030478,116470.0,116460.0,1.05025914]
[1757707728446,0.8802509,116470.0,116460.0,1.05025914]
[1757707729748,0.8802509,116470.0,116460.0,0.91098276]
[1757707731346,0.0630509,116470.0,116460.0,1.05025914]
[1757707731644,0.0409309,116470.0,116460.0,2.11701914]
[1757707732439,0.0409309,116470.0,116460.0,2.11697914]
[1757707733547,0.0409309,116470.0,116460.0,1.30025914]
[1757707734148,0.0409309,116470.0,116460.0,2.11689914]
[1757707734942,0.0409309,116470.0,116460.0,1.30025914]
[1757707737246,0.0409309,116470.0,116460.0,1.05025914]
[1757707737446,0.0635009,116470.0,116460.0,0.63243]
[1757707737650,0.56357728,116470.0,116460.0,0.77170638]
[1757707737846,0.20277728,116470.0,116460.0,0.77170638]
[1757707738350,0.20277728,116470.0,116460.0,0.91098276]
[1757707738552,0.56357728,116470.0,116460.0,0.91098276]
[1757707739455,0.56357728,116470.0,116460.0,0.63243]
[1757707739653,0.56357728,116470.0,116460.0,0.91098276]
[1757707740155,0.4243009,116470.0,116460.0,0.91098276]
[1757707740653,0.56357728,116470.0,116460.0,0.91098276]
[1757707740848,0.56357728,116470.0,116460.0,0.63243]
[1757707741051,0.56357728,116470.0,116460.0,0.91098276]
[1757707741241,0.4243009,116470.0,116460.0,0.91098276]
[1757707741757,0.56357728,116470.0,116460.0,0.91098276]
[1757707742657,0.56357728,116470.0,116460.0,0.63243]
[1757707742955,0.56357728,116470.0,116460.0,0.91098276]
[1757707743150,0.4243009,116470.0,116460.0,0.77170638]
[1757707743356,0.56357728,116470.0,116460.0,0.77170638]
[1757707744056,0.4243009,116470.0,116460.0,0.77170638]
[1757707744259,0.56357728,116470.0,116460.0,0.77170638]
[1757707744846,0.70285366,116470.0,116460.0,0.77170638]
[1757707745050,0.56357728,116470.0,116460.0,0.77170638]
[1757707746261,1.37957728,116470.0,116460.0,0.91098276]
[1757707746760,1.2403009,116470.0,116460.0,0.91098276]
[1757707746956,0.4243009,116470.0,116460.0,0.91098276]
[1757707747151,1.2402609,116470.0,116460.0,0.91098276]
[1757707750661,1.2402609,116470.0,116460.0,1.05025914]
[1757707751360,1.2402609,116470.0,116460.0,0.91098276]
[1757707753564,1.2402609,116470.0,116460.0,0.63243]
[1757707753763,1.2402609,116470.0,116460.0,0.91098276]
[1757707754066,1.37953728,116470.0,116460.0,0.91098276]
[1757707755163,1.2399009,116470.0,116460.0,1.05025914]
[1757707756966,0.8791009,116470.0,116460.0,1.05025914]
[1757707757259,0.8564909,116470.0,116460.0,1.05025914]
[1757707757767,0.0409309,116470.0,116460.0,1.66105914]
[1757707757966,0.8563709,116470.0,116460.0,1.66105914]
[1757707759168,0.0409309,116470.0,116460.0,2.47649914]
[1757707761565,0.01068691,116470.0,116460.0,2.47649914]
[1757707764565,0.01068691,116470.0,116460.0,2.05867]
[1757707764768,0.01068691,116470.0,116460.0,2.47649914]
[1757707765869,1.3224012,116490.0,116480.0,0.03494]
[1757707766066,0.10901107,116490.0,116480.0,1.04276914]
[1757707767266,0.10901107,116490.0,116480.0,1.40356914]
[1757707767569,0.10901107,116490.0,116480.0,1.42393735]
[1757707768368,0.10901107,116490.0,116480.0,1.42493735]
[1757707768969,0.10901107,116490.0,116480.0,1.42693735]
[1757707769669,0.07861217,116490.0,116480.0,1.42693735]
[1757707769874,1.17581,116500.0,116490.0,0.01321]
[1757707769875,1.19873,116500.0,116490.0,0.01321]
[1757707770070,1.36838436,116500.0,116490.0,0.64494]
[1757707770270,1.36838436,116500.0,116490.0,0.92349276]
[1757707770461,1.22910798,116500.0,116490.0,0.83054258]
[1757707771870,0.86830798,116500.0,116490.0,0.83054258]
[1757707772271,0.8768989,116500.0,116490.0,0.83054258]
[1757707774673,0.6468989,116500.0,116490.0,0.83054258]
[1757707774975,0.71515674,116500.0,116490.0,0.83054258]
[1757707775364,0.94470674,116500.0,116490.0,0.83054258]
[1757707776373,0.94470674,116500.0,116490.0,1.19134258]
[1757707776768,0.10722674,116500.0,116490.0,2.52723406]
[1757707777073,0.06825784,116500.0,116490.0,2.44138516]
[1757707777274,0.82328277,116510.0,116500.0,0.03494]
[1757707777573,0.85375653,116510.0,116500.0,1.34694516]
[1757707778875,0.04031653,116510.0,116500.0,1.34694516]
[1757707779174,0.04031653,116510.0,116500.0,1.36668268]
[1757707779667,0.11055794,116510.0,116500.0,1.36668268]
[1757707779875,0.03147376,116510.0,116500.0,1.36668268]
[1757707780072,0.03247376,116510.0,116500.0,1.36668268]
[1757707780276,0.03247376,116510.0,116500.0,1.34495268]
[1757707780677,0.04127787,116510.0,116500.0,1.34495268]
[1757707780878,0.04127787,116510.0,116500.0,0.97374752]
[1757707781072,0.06419787,116510.0,116500.0,0.99547752]
[1757707781377,0.06419787,116510.0,116500.0,1.36668268]
[1757707781570,0.04127787,116510.0,116500.0,1.36668268]
[1757707783673,0.04127787,116510.0,116500.0,1.34495268]
[1757707783979,0.11128603,116510.0,116500.0,1.34495268]
[1757707788777,0.08081227,116510.0,116500.0,1.34495268]
[1757707793074,0.11129162,116510.0,116500.0,1.34495268]
[1757707798788,0.11129162,116510.0,116500.0,0.97374752]
[1757707798988,0.11129162,116510.0,116500.0,1.34495268]
[1757707800092,0.11129162,116510.0,116500.0,0.97374752]
[1757707800290,0.11129162,116510.0,116500.0,1.34495268]
[1757707804994,0.13265162,116510.0,116500.0,1.36688268]
[1757707806898,0.11129162,116510.0,116500.0,1.36688268]
[1757707808399,0.11029162,116510.0,116500.0,1.36688268]
[1757707809199,0.10929162,116510.0,116500.0,1.36688268]
[1757707809790,0.35929162,116510.0,116500.0,0.61514]
[1757707809998,0.39068162,116510.0,116500.0,0.60193]
[1757707810295,0.5762842,116510.0,116500.0,0.60493]
[1757707811300,0.5762842,116510.0,116500.0,0.60293]
[1757707812802,0.5762842,116510.0,116500.0,0.60193]
[1757707813303,0.39168162,116510.0,116500.0,0.60193]
[1757707813505,1.3896842,116510.0,116500.0,0.60193]
[1757707813695,1.3896842,116510.0,116500.0,0.78753258]
[1757707813895,1.3886842,116510.0,116500.0,0.78753258]
[1757707814192,1.19293162,116510.0,116500.0,0.80103258]
[1757707817098,0.38065162,116510.0,116500.0,0.80103258]
[1757707817299,0.10929162,116510.0,116500.0,1.23663516]
[1757707817506,0.10929162,116510.0,116500.0,1.59743516]
[1757707818608,0.10929162,116510.0,116500.0,1.23663516]
[1757707818805,0.10929162,116510.0,116500.0,1.59743516]
[1757707819502,0.10929162,116510.0,116500.0,1.23663516]
[1757707819704,0.10929162,116510.0,116500.0,1.23963516]
[1757707820210,0.10929162,116510.0,116500.0,0.86843]
[1757707820509,0.13046162,116510.0,116500.0,1.60043516]
[1757707820900,0.13046162,116510.0,116500.0,1.23963516]
[1757707821404,0.49126162,116510.0,116500.0,1.23963516]
[1757707821600,0.46078227,116510.0,116500.0,1.23963516]
[1757707821902,0.49130427,116510.0,116500.0,1.23963516]
[1757707822311,0.49130427,116510.0,116500.0,1.05403258]
[1757707822804,0.49130427,116510.0,116500.0,1.23963516]
[1757707823711,0.49130427,116510.0,116500.0,1.05403258]
[1757707825216,0.93693685,116510.0,116500.0,0.60493]
[1757707825520,0.93693685,116510.0,116500.0,0.60475]
[1757707826214,1.12253943,116510.0,116500.0,0.583]
[1757707828319,1.15336621,116510.0,116500.0,0.583]
[1757707828711,1.15336621,116510.0,116500.0,0.582]
[1757707828911,1.15436621,116510.0,116500.0,0.582]
[1757707829511,1.15436621,116510.0,116500.0,0.58]
[1757707829709,1.15536621,116510.0,116500.0,0.29612082]
[1757707830219,1.96672621,116510.0,116480.0,0.01371]
[1757707830423,0.92902258,116490.0,116480.0,0.56546]
[1757707830615,1.77086458,116490.0,116480.0,0.56546]
[1757707831117,1.78089458,116490.0,116480.0,0.56546]
[1757707831322,1.78089458,116490.0,116480.0,0.55175]
[1757707832426,2.01309144,116490.0,116480.0,0.55175]
[1757707832617,2.01309144,116490.0,116480.0,0.531]
[1757707832923,2.01297144,116490.0,116480.0,0.55475]
[1757707833627,1.20177144,116490.0,116480.0,0.55475]
[1757707833827,2.01297144,116490.0,116480.0,0.55475]
[1757707834930,2.01297144,116490.0,116480.0,0.533]
[1757707835316,2.01285144,116490.0,116480.0,0.533]
[1757707835516,1.20177144,116490.0,116480.0,0.533]
[1757707835716,2.01285144,116490.0,116480.0,0.533]
[1757707837728,2.01285144,116490.0,116480.0,0.55475]
[1757707838329,2.01285144,116490.0,116480.0,0.533]
[1757707839826,1.20177144,116490.0,116480.0,0.533]
[1757707840034,1.20177144,116490.0,116480.0,0.55475]
[1757707840235,2.01257144,116490.0,116480.0,0.55475]
[1757707841036,2.01257144,116490.0,116480.0,0.533]
[1757707841830,2.01591144,116490.0,116480.0,0.533]
[1757707842537,1.20511144,116490.0,116480.0,0.533]
[1757707842738,1.20511144,116490.0,116480.0,0.55475]
[1757707843033,2.01579144,116490.0,116480.0,0.55475]
[1757707843431,1.584582,116490.0,116480.0,0.70772648]
[1757707843732,0.773942,116490.0,116480.0,0.70772648]
[1757707843926,1.584542,116490.0,116480.0,0.70772648]
[1757707844128,1.86307496,116490.0,116480.0,0.70772648]
[1757707844324,1.05247496,116490.0,116480.0,0.70772648]
[1757707844626,1.86307496,116490.0,116480.0,0.70772648]
[1757707844825,1.86307496,116490.0,116480.0,0.56846]
[1757707845030,2.00234144,116490.0,116480.0,0.55475]
[1757707845232,1.86307496,116490.0,116480.0,0.55475]
[1757707845430,2.00234144,116490.0,116480.0,0.55475]
[1757707845625,2.00234144,116490.0,116480.0,0.56846]
[1757707846136,2.03316822,116490.0,116480.0,0.56846]
[1757707847333,1.89390174,116490.0,116480.0,0.56846]
[1757707848540,0.80476878,116490.0,116480.0,0.56846]
[1757707848739,1.08330174,116490.0,116480.0,0.70772648]
[1757707848936,1.59322878,116490.0,116480.0,1.23625944]
[1757707849241,0.840802,116490.0,116480.0,1.23625944]
[1757707849542,1.34086848,116490.0,116480.0,1.09699296]
[1757707850039,1.223112,116490.0,116480.0,0.81846]
[1757707850342,1.223112,116490.0,116480.0,1.09699296]
[1757707850836,1.36237848,116490.0,116480.0,1.09699296]
[1757707851044,1.64091144,116490.0,116480.0,0.56846]
[1757707851245,1.597282,116490.0,116480.0,0.55475]
[1757707851545,1.87581496,116490.0,116480.0,0.55475]
[1757707852145,1.597282,116490.0,116480.0,0.55475]
[1757707852341,1.87581496,116490.0,116480.0,0.55475]
[1757707853447,1.583912,116490.0,116480.0,0.5686]
[1757707853744,1.86244496,116490.0,116480.0,0.5686]
[1757707853944,1.86244496,116490.0,116480.0,0.70786648]
[1757707854847,1.86244496,116490.0,116480.0,0.5686]
[1757707855846,2.00171144,116490.0,116480.0,0.55475]
[1757707856041,1.97118944,116490.0,116480.0,0.533]
[1757707856342,2.03274086,116490.0,116480.0,0.533]
[1757707856750,2.04815032,116490.0,116480.0,0.533]
[1757707857950,2.29815032,116490.0,116480.0,0.533]
[1757707858249,2.25192195,116490.0,116480.0,0.533]
[1757707858449,2.31355977,116490.0,116480.0,0.533]
[1757707859454,2.31299977,116490.0,116480.0,0.533]
[1757707859646,2.31291977,116490.0,116480.0,0.533]
[1757707861253,1.50327977,116490.0,116480.0,0.533]
[1757707861454,2.31279977,116490.0,116480.0,0.533]
[1757707861654,1.50327977,116490.0,116480.0,0.533]
[1757707861952,2.31279977,116490.0,116480.0,0.533]
[1757707862153,1.50327977,116490.0,116480.0,0.533]
[1757707862647,2.31275977,116490.0,116480.0,0.533]
[1757707862851,2.25112195,116490.0,116480.0,0.533]
[1757707864055,2.25110653,116490.0,116480.0,0.533]
[1757707865857,2.29731255,116490.0,116480.0,0.533]
[1757707866055,2.29711255,116490.0,116480.0,0.533]
[1757707868055,1.09856607,116490.0,116480.0,0.70711648]
[1757707868253,1.7531726,116490.0,116480.0,0.70711648]
[1757707868456,1.75317259,116490.0,116480.0,0.95711648]
[1757707869060,2.03170555,116490.0,116480.0,0.804]
[1757707869664,2.04711255,116490.0,116480.0,0.783]
[1757707871261,2.04711255,116490.0,116480.0,0.533]
[1757707874866,0.82003311,116490.0,116480.0,0.533]
[1757707875165,0.82003311,116490.0,116480.0,0.554]
[1757707875371,2.04655255,116490.0,116480.0,0.554]
[1757707875564,2.04655255,116490.0,116480.0,0.533]
[1757707877868,2.04655255,116490.0,116480.0,0.36107952]
[1757707878774,0.02149,116460.0,116450.0,0.03471]
[1757707878969,1.89276653,116460.0,116450.0,0.03471]
[1757707879273,0.77380709,116460.0,116450.0,0.63471]
[1757707879472,1.72151357,116460.0,116450.0,0.77397648]
[1757707879870,1.72151357,116460.0,116450.0,0.77897648]
[1757707880171,1.79103019,116460.0,116450.0,0.77897648]
[1757707880876,1.79095019,116460.0,116450.0,0.78197648]
[1757707881075,0.98259019,116460.0,116450.0,0.78197648]
[1757707881371,1.79091019,116460.0,116450.0,0.78197648]
[1757707881875,1.79091019,116460.0,116450.0,0.64271]
[1757707882077,1.79091019,116460.0,116450.0,0.78197648]
[1757707883473,1.79091019,116460.0,116450.0,0.64271]
[1757707883673,1.94331667,116460.0,116450.0,0.64271]
[1757707884564,1.93017667,116460.0,116450.0,0.64271]
[1757707886577,2.06944315,116460.0,116450.0,0.64271]
[1757707887176,1.65164371,116460.0,116450.0,0.64271]
[1757707887371,2.06944315,116460.0,116450.0,0.64271]
[1757707887975,1.26112315,116460.0,116450.0,0.64271]
[1757707888679,2.06904315,116460.0,116450.0,0.64271]
[1757707888978,1.26112315,116460.0,116450.0,0.64271]
[1757707889175,2.06900315,116460.0,116450.0,0.64271]
[1757707891282,1.26112315,116460.0,116450.0,0.64271]
[1757707891481,2.06884315,116460.0,116450.0,0.64271]
[1757707894382,2.02259423,116460.0,116450.0,0.64271]
[1757707903388,1.65104371,116460.0,116450.0,0.64271]
[1757707903588,2.02259423,116460.0,116450.0,0.64271]
[1757707907189,1.21487423,116460.0,116450.0,0.64271]
[1757707907390,2.02155423,116460.0,116450.0,0.64271]
[1757707908786,2.03459423,116460.0,116450.0,0.64271]
[1757707909191,2.03469585,116460.0,116450.0,0.64271]
[1757707909690,2.06549022,116460.0,116450.0,0.64271]
[1757707911694,1.6939397,116460.0,116450.0,0.64271]
[1757707911994,2.06549022,116460.0,116450.0,0.64271]
[1757707913197,2.06549022,116460.0,116450.0,0.629]
[1757707916900,2.25126548,116460.0,116450.0,0.608]
[1757707917594,2.06549022,116460.0,116450.0,0.608]
[1757707918700,2.11168178,116460.0,116450.0,0.63105]
[1757707922501,2.06549022,116460.0,116450.0,0.63105]
[1757707923406,1.25881022,116460.0,116450.0,0.63105]
[1757707923606,2.06441022,116460.0,116450.0,0.63105]
[1757707926717,2.06441022,116460.0,116450.0,0.608]
[1757707926917,2.06441022,116460.0,116450.0,0.63105]
[1757707927215,2.06441022,116460.0,116450.0,0.608]
[1757707927817,2.06441022,116460.0,116450.0,0.63105]
[1757707929617,2.07980741,116460.0,116450.0,0.63105]
[1757707932116,2.07980741,116460.0,116450.0,0.60414038]
[1757707932319,0.03598,116430.0,116420.0,0.00971]
[1757707932620,1.09290923,116430.0,116420.0,0.53971]
[1757707932817,1.62873397,116430.0,116420.0,0.53971]
[1757707933222,1.65950966,116430.0,116420.0,0.53971]
[1757707933422,1.66823162,116430.0,116420.0,0.53971]
[1757707933624,1.66823162,116430.0,116420.0,0.54571]
[1757707933822,1.63289636,116430.0,116420.0,0.54571]
[1757707934122,1.81867162,116430.0,116420.0,0.56405]
[1757707934919,1.81867162,116430.0,116420.0,0.56205]
[1757707935311,1.81867162,116430.0,116420.0,0.55905]
[1757707936220,1.78789593,116430.0,116420.0,0.55905]
[1757707936410,1.78773593,116430.0,116420.0,0.55905]
[1757707937023,1.81851162,116430.0,116420.0,0.55905]
[1757707937324,0.98289593,116430.0,116420.0,0.55905]
[1757707937716,1.60188067,116430.0,116420.0,0.55905]
[1757707937919,0.78371067,116430.0,116420.0,1.18060052]
[1757707938226,1.58843067,116430.0,116420.0,0.99482526]
[1757707939226,1.58839067,116430.0,116420.0,0.99482526]
[1757707942723,1.58839067,116430.0,116420.0,0.80905]
[1757707942912,1.58839067,116430.0,116420.0,0.99482526]
[1757707943524,1.58811067,116430.0,116420.0,0.80905]
[1757707943725,1.58811067,116430.0,116420.0,0.99482526]
[1757707944327,1.58806817,116430.0,116420.0,0.99482526]
[1757707945126,1.58811817,116430.0,116420.0,0.99482526]
[1757707945326,1.58811817,116430.0,116420.0,0.80905]
[1757707945529,1.58811817,116430.0,116420.0,0.99482526]
[1757707946028,1.58799817,116430.0,116420.0,0.99482526]
[1757707948936,1.77377343,116430.0,116420.0,0.80905]
[1757707949233,1.77377343,116430.0,116420.0,0.99482526]
[1757707950329,1.58799817,116430.0,116420.0,0.99482526]
[1757707950529,1.77377343,116430.0,116420.0,0.99482526]
[1757707950736,1.05217343,116430.0,116420.0,0.99482526]
[1757707951037,1.77377343,116430.0,116420.0,0.99482526]
[1757707951937,1.77378932,116430.0,116420.0,0.99482526]
[1757707952737,1.77378932,116430.0,116420.0,0.80905]
[1757707953038,1.77378932,116430.0,116420.0,0.99482526]
[1757707954541,1.72739301,116430.0,116420.0,0.94842895]
[1757707955738,1.86677196,116430.0,116420.0,0.94842895]
[1757707957839,1.86677196,116430.0,116420.0,0.80905]
[1757707958139,1.87982196,116430.0,116420.0,0.94842895]
[1757707958434,2.01920091,116430.0,116420.0,0.55905]
[1757707958635,2.26920091,116430.0,116420.0,0.54571]
[1757707959332,2.01920091,116430.0,116420.0,0.54571]
[1757707959731,1.85106406,116430.0,116420.0,0.54571]
[1757707959929,2.26920091,116430.0,116420.0,0.54571]
[1757707961647,1.46492091,116430.0,116420.0,0.54571]
[1757707962033,2.26812091,116430.0,116420.0,0.54571]
[1757707962237,2.12874196,116430.0,116420.0,0.54571]
[1757707962439,2.26812091,116430.0,116420.0,0.54571]
[1757707962844,2.27012091,116430.0,116420.0,0.54271]
[1757707963741,1.46692091,116430.0,116420.0,0.53971]
[1757707963939,2.27000091,116430.0,116420.0,0.53971]
[1757707964134,2.13062196,116430.0,116420.0,0.67908895]
[1757707964333,2.28739228,116430.0,116420.0,0.53971]
[1757707964533,2.31816797,116430.0,116420.0,0.53971]
[1757707964939,2.3643315,116430.0,116420.0,0.53971]
[1757707965342,2.34694013,116430.0,116420.0,0.53971]
[1757707966443,2.31839049,116430.0,116420.0,0.53971]
[1757707966845,2.36455402,116430.0,116420.0,0.53971]
[1757707967349,2.36455402,116430.0,116420.0,0.53]
[1757707967949,2.36455402,116430.0,116420.0,0.55313]
[1757707968248,2.31839049,116430.0,116420.0,0.55313]
[1757707968441,2.36455402,116430.0,116420.0,0.55313]
[1757707968634,2.31839049,116430.0,116420.0,0.55313]
[1757707978753,2.06839049,116430.0,116420.0,0.27094811]
[1757707978953,2.06839049,116430.0,116420.0,0.55]
[1757707980855,2.06747049,116430.0,116420.0,0.5727]
[1757707981746,1.26531049,116430.0,116420.0,0.5727]
[1757707982057,2.06739049,116430.0,116420.0,0.5727]
[1757707983558,2.08277833,116430.0,116420.0,0.5727]
[1757707984059,1.28069833,116430.0,116420.0,0.5727]
[1757707984253,1.6490554,116430.0,116420.0,0.58561]
[1757707984456,1.93010938,116430.0,116420.0,0.72498895]
[1757707984959,1.94285938,116430.0,116420.0,0.58561]
[1757707985560,1.94285938,116430.0,116420.0,0.5727]
[1757707985561,2.08223833,116430.0,116420.0,0.5727]
[1757707985862,2.11301571,116430.0,116420.0,0.5727]
[1757707986257,2.08223833,116430.0,116420.0,0.5727]
[1757707988260,2.08223833,116430.0,116420.0,0.55]
[1757707988261,2.06462444,116430.0,116420.0,0.55]
[1757707988466,2.31462444,116430.0,116420.0,0.55]
[1757707992967,2.26846091,116430.0,116420.0,0.55]
[1757707996769,1.46662091,116430.0,116420.0,0.55]
[1757707997068,1.5128399,116430.0,116420.0,0.55]
[1757707997269,2.3139199,116430.0,116420.0,0.55]
[1757707999372,1.5128399,116430.0,116420.0,0.55]
[1757707999573,2.26754091,116430.0,116420.0,0.55]
[1757708000074,1.46662091,116430.0,116420.0,0.55]
[1757708000270,2.26754091,116430.0,116420.0,0.5727]
[1757708000775,2.26754091,116430.0,116420.0,0.55]
[1757708000976,1.46662091,116430.0,116420.0,0.55]
[1757708001176,2.26746091,116430.0,116420.0,0.55]
[1757708001478,2.26746091,116430.0,116420.0,0.5724]
[1757708002176,2.70476091,116430.0,116420.0,0.5724]
[1757708003678,2.70476091,116430.0,116420.0,0.55]
[1757708004281,2.75097813,116430.0,116420.0,0.55]
[1757708006687,1.95013813,116430.0,116420.0,0.5724]
[1757708006889,2.75061813,116430.0,116420.0,0.5724]
[1757708007087,2.02901813,116430.0,116420.0,0.5724]
[1757708007386,2.75061813,116430.0,116420.0,0.5724]
[1757708008888,2.76790492,116430.0,116420.0,0.5724]
[1757708010187,2.7216877,116430.0,116420.0,0.5724]
[1757708011090,1.9212077,116430.0,116420.0,0.5724]
[1757708011290,2.7214477,116430.0,116420.0,0.5724]
[1757708011791,1.9212077,116430.0,116420.0,0.5724]
[1757708011990,2.7214077,116430.0,116420.0,0.5724]
[1757708012189,1.9212077,116430.0,116420.0,0.5724]
[1757708012389,2.70412091,116430.0,116420.0,0.5724]
[1757708016393,2.47188241,116430.0,116420.0,0.5724]
[1757708016594,2.47160241,116430.0,116420.0,0.5724]
[1757708019295,2.22160241,116430.0,116420.0,0.5724]
[1757708019696,2.28324023,116430.0,116420.0,0.5724]
[1757708021498,2.46913858,116430.0,116420.0,0.5724]
[1757708022094,2.46913858,116430.0,116420.0,0.55]
[1757708022798,2.40750076,116430.0,116420.0,0.55]
[1757708023896,2.22160241,116430.0,116420.0,0.5724]
[1757708024092,2.28278307,116430.0,116420.0,0.5724]
[1757708025400,2.28278307,116430.0,116420.0,0.55]
[1757708025698,2.45327588,116430.0,116420.0,0.55]
[1757708026293,2.40706076,116430.0,116420.0,0.55]
[1757708028303,2.40706076,116430.0,116420.0,0.235]
[1757708028502,2.40706076,116430.0,116350.0,0.37962138]
[1757708028503,1.92110626,116430.0,116350.0,0.02276138]
[1757708028692,0.55769505,116360.0,116280.0,0.18589835]
[1757708028889,0.18589835,116340.0,116330.0,0.01394]
[1757708029089,0.55852146,116340.0,116330.0,0.08394]
[1757708029395,0.57866932,116340.0,116320.0,0.01394]
[1757708029594,0.55769505,116330.0,116320.0,0.39817914]
[1757708029796,0.55769505,116330.0,116310.0,0.01394]
[1757708029797,0.00082641,116320.0,116310.0,0.01394]
[1757708029992,0.95719289,116320.0,116300.0,0.01394]
[1757708030192,0.86014286,116320.0,116300.0,0.08390562]
[1757708030397,0.86014286,116320.0,116230.0,1.64968]
[1757708030592,0.00082641,116280.0,116270.0,0.02223]
[1757708030798,0.00082641,116280.0,116270.0,0.52617]
[1757708031001,0.38774311,116280.0,116270.0,0.52617]
[1757708031395,0.60434915,116280.0,116270.0,0.77617]
[1757708031600,0.67167769,116280.0,116270.0,0.52617]
[1757708031802,0.67177918,116280.0,116270.0,0.52617]
[1757708032199,1.47038956,116280.0,116270.0,0.49404499]
[1757708032394,1.62262956,116280.0,116270.0,0.49704499]
[1757708032699,1.62259786,116280.0,116270.0,0.45643499]
[1757708032902,1.6533354,116280.0,116270.0,0.45643499]
[1757708033103,1.48284071,116280.0,116270.0,0.45643499]
[1757708033303,1.66818732,116280.0,116270.0,0.04416]
[1757708033507,1.48228897,116280.0,116270.0,0.61194]
[1757708033695,1.48228897,116280.0,116270.0,0.63416]
[1757708034003,1.48228897,116280.0,116270.0,0.38962826]
[1757708034208,1.06511302,116280.0,116270.0,0.64549]
[1757708034408,1.14945368,116280.0,116270.0,0.85907661]
[1757708034706,1.06506888,116280.0,116270.0,0.85907661]
[1757708034902,1.25089137,116280.0,116270.0,0.67317826]
[1757708035109,0.22483302,116280.0,116270.0,0.68639293]
[1757708035402,0.28653067,116280.0,116270.0,0.87229128]
[1757708035705,1.07343317,116280.0,116270.0,0.87229128]
[1757708035907,0.10753451,116280.0,116270.0,0.87229128]
[1757708036109,0.94714279,116280.0,116270.0,0.87229128]
[1757708036308,0.99264947,116280.0,116270.0,0.87229128]
[1757708036509,0.99264947,116280.0,116270.0,0.68639293]
[1757708036707,0.99264947,116280.0,116270.0,0.90324196]
[1757708036902,0.99272848,116280.0,116270.0,0.90324196]
[1757708037104,0.9927465,116280.0,116270.0,0.90324196]
[1757708037306,0.15296947,116280.0,116270.0,0.90324196]
[1757708037504,0.13777554,116280.0,116270.0,0.90324196]
[1757708037709,0.10277554,116280.0,116270.0,0.90324196]
[1757708037909,0.10285455,116280.0,116270.0,0.90324196]
[1757708038110,0.10277554,116280.0,116270.0,0.90324196]
[1757708038303,0.07246279,116280.0,116270.0,0.90324196]
[1757708038606,0.03031275,116280.0,116270.0,0.90324196]
[1757708038810,1.03465809,116300.0,116290.0,0.02222]
[1757708039009,1.03465809,116300.0,116290.0,0.58543467]
[1757708039409,1.03405531,116300.0,116290.0,0.58543467]
[1757708039707,0.92779125,116300.0,116290.0,0.58543467]
[1757708039908,0.92786324,116300.0,116290.0,0.58543467]
[1757708040108,0.99787071,116300.0,116290.0,0.58543467]
[1757708040310,0.95243557,116300.0,116290.0,0.58543467]
[1757708040510,0.95236403,116300.0,116290.0,0.58543467]
[1757708040706,0.95343139,116300.0,116290.0,0.58543467]
[1757708040906,0.95336403,116300.0,116290.0,0.58543467]
[1757708041106,0.9622776,116300.0,116290.0,0.58543467]
[1757708041311,0.97543898,116300.0,116290.0,0.58543467]
[1757708041514,0.97552255,116300.0,116290.0,0.58543467]
[1757708041814,0.97543898,116300.0,116290.0,0.58543467]
[1757708042003,0.97554047,116300.0,116290.0,0.58543467]
[1757708042202,0.97543898,116300.0,116290.0,0.58543467]
[1757708042403,0.97551445,116300.0,116290.0,0.58543467]
[1757708042604,1.23779469,116300.0,116290.0,0.58543467]
[1757708042912,1.19235174,116300.0,116290.0,0.58565177]
[1757708043113,1.19228801,116300.0,116290.0,0.58565177]
[1757708043313,1.19235324,116300.0,116290.0,0.58565177]
[1757708043510,1.19228801,116300.0,116290.0,0.58565177]
[1757708043815,0.97550245,116300.0,116290.0,0.58565177]
[1757708044006,0.97543898,116300.0,116290.0,0.58565177]
[1757708044315,0.9740052,116300.0,116290.0,0.58565177]
[1757708044515,0.97396898,116300.0,116290.0,0.58565177]
[1757708044811,0.9740567,116300.0,116290.0,0.58565177]
[1757708045011,0.97396898,116300.0,116290.0,0.58565177]
[1757708045212,1.1909195,116300.0,116290.0,0.58565177]
[1757708045405,1.19081801,116300.0,116290.0,0.58565177]
[1757708045605,1.19089762,116300.0,116290.0,0.58565177]
[1757708045814,0.97396898,116300.0,116290.0,0.58565177]
[1757708046112,0.97404469,116300.0,116290.0,0.58565177]
[1757708046314,0.97396898,116300.0,116290.0,0.58565177]
[1757708046613,0.97403218,116300.0,116290.0,0.58565177]
[1757708046813,0.97396898,116300.0,116290.0,0.58565177]
[1757708047008,0.97404613,116300.0,116290.0,0.58565177]
[1757708047208,1.01947566,116300.0,116290.0,0.58565177]
[1757708047410,1.01795461,116300.0,116290.0,0.58565177]
[1757708047612,1.01787566,116300.0,116290.0,0.58565177]
[1757708047810,1.01797346,116300.0,116290.0,0.58565177]
[1757708048114,1.01787566,116300.0,116290.0,0.58565177]
[1757708048313,1.23481695,116300.0,116290.0,0.58565177]
[1757708048513,1.95632469,116300.0,116290.0,0.58565177]
[1757708048814,1.95641374,116300.0,116290.0,0.58565177]
[1757708049014,1.95632469,116300.0,116290.0,0.58565177]
[1757708049313,1.95639066,116300.0,116290.0,0.58565177]
[1757708049513,1.95632469,116300.0,116290.0,0.58565177]
[1757708049714,1.94185016,116300.0,116290.0,0.58565177]
[1757708049916,1.98724189,116300.0,116290.0,0.58565177]
[1757708050116,1.98731242,116300.0,116290.0,0.58565177]
[1757708050314,1.98724189,116300.0,116290.0,0.58565177]
[1757708050515,1.98734338,116300.0,116290.0,0.58565177]
[1757708050714,1.98724189,116300.0,116290.0,0.58565177]
[1757708050913,1.98732579,116300.0,116290.0,0.58565177]
[1757708051215,1.94176598,116300.0,116290.0,0.58565177]